bitfinex/quotes_BTCUSD_20220405
["timestamp","ask_amount","ask_price","bid_price","bid_amount"]
[1649175156626,0.1778601,45900.0,45897.0,0.00050034]
[1649175156724,0.18714809,45899.0,45897.0,0.00050034]
[1649175156974,0.18714809,45899.0,45893.0,0.17684591]
[1649175157179,0.23714809,45899.0,45896.0,0.00050039]
[1649175157476,0.51982099,45899.0,45896.0,0.00050039]
[1649175157578,0.24986277,45897.0,45896.0,0.00050039]
[1649175157676,0.01089,45898.0,45896.0,0.00050039]
[1649175157778,0.05,45897.0,45896.0,0.00050039]
[1649175157876,0.2887501,45898.0,45896.0,0.00050039]
[1649175158077,0.1887501,45898.0,45896.0,0.00050039]
[1649175158177,0.3326729,45899.0,45896.0,0.00050039]
[1649175158276,0.17832065,45898.0,45890.0,0.17737903]
[1649175158378,0.17832065,45898.0,45895.0,0.00050039]
[1649175158478,0.51099355,45899.0,45895.0,0.00050039]
[1649175158777,0.26099355,45899.0,45895.0,0.00050039]
[1649175159082,0.0826729,45899.0,45895.0,0.00050039]
[1649175159177,0.17832065,45900.0,45895.0,0.00050039]
[1649175159439,0.17832065,45900.0,45891.0,0.17737903]
[1649175159682,0.32290081,45902.0,45895.0,0.00049889]
[1649175159683,0.17832065,45899.0,45895.0,0.00049889]
[1649175159879,0.00045684,45893.0,45892.0,0.47737903]
[1649175159979,0.00045684,45893.0,45891.0,0.17735588]
[1649175160182,0.00045684,45893.0,45892.0,0.17735588]
[1649175160733,0.38466632,45893.0,45892.0,0.08893902]
[1649175160838,0.00045684,45893.0,45892.0,0.08893902]
[1649175160931,0.15504684,45893.0,45892.0,0.08893902]
[1649175161041,0.15504684,45893.0,45886.0,0.4873921]
[1649175161042,0.15504684,45893.0,45886.0,0.22132355]
[1649175161135,0.3,45892.0,45886.0,0.22132355]
[1649175161242,0.33432901,45893.0,45886.0,0.22132355]
[1649175161243,0.19443837,45893.0,45886.0,0.22132355]
[1649175161336,0.41733918,45893.0,45886.0,0.22132355]
[1649175161437,0.0437,45891.0,45886.0,0.22132355]
[1649175161739,0.27452594,45890.0,45886.0,0.22132355]
[1649175162033,0.0437,45889.0,45886.0,0.22132355]
[1649175162137,0.1437,45889.0,45886.0,0.22132355]
[1649175164727,0.19817986,45889.0,45886.0,0.22132355]
[1649175165729,0.19817986,45889.0,45886.0,0.22232355]
[1649175167541,0.01103118,45887.0,45886.0,0.22232355]
[1649175167644,0.3499137,45889.0,45886.0,0.22232355]
[1649175167742,0.19817986,45889.0,45886.0,0.22232355]
[1649175167848,0.1437,45889.0,45886.0,0.22232355]
[1649175170251,0.1,45889.0,45886.0,0.22232355]
[1649175170789,0.00045684,45893.0,45886.0,0.247164]
[1649175171036,0.00045684,45893.0,45892.0,0.3172672]
[1649175171236,0.00045684,45893.0,45892.0,0.62493734]
[1649175171336,0.00045684,45893.0,45892.0,0.87204798]
[1649175171691,0.00045684,45893.0,45892.0,0.64977779]
[1649175173143,0.00045684,45893.0,45892.0,0.62493734]
[1649175173341,0.00045684,45893.0,45892.0,0.3172672]
[1649175173445,0.09571502,45901.0,45892.0,0.3172672]
[1649175173543,0.14571502,45901.0,45892.0,0.3172672]
[1649175173892,0.14545684,45901.0,45892.0,0.3172672]
[1649175173991,0.05446933,45894.0,45892.0,0.3172672]
[1649175174204,0.05,45895.0,45893.0,0.02484045]
[1649175174296,0.14571503,45901.0,45893.0,0.02484045]
[1649175174446,0.14571503,45901.0,45893.0,0.30780748]
[1649175175045,0.14545684,45901.0,45893.0,0.30780748]
[1649175175144,0.15,45901.0,45893.0,0.30780748]
[1649175175344,0.150536,45901.0,45893.0,0.02537654]
[1649175175745,0.150536,45901.0,45893.0,0.00053609]
[1649175176099,0.10893733,45900.0,45893.0,0.00053609]
[1649175176299,0.37822511,45900.0,45891.0,0.30319153]
[1649175176399,0.37822511,45900.0,45890.0,0.0109]
[1649175176499,0.57410958,45900.0,45893.0,0.00050949]
[1649175176898,0.054476,45899.0,45893.0,0.00050949]
[1649175177299,0.10893733,45900.0,45893.0,0.00050949]
[1649175177499,0.10893733,45900.0,45892.0,0.02484045]
[1649175177798,0.10893733,45900.0,45893.0,0.00050948]
[1649175177948,0.05446233,45900.0,45893.0,0.00050948]
[1649175178282,0.29553914,45900.0,45893.0,0.00050948]
[1649175178485,0.05446233,45900.0,45893.0,0.00050948]
[1649175178684,0.05446233,45900.0,45892.0,0.02484045]
[1649175179088,0.05446233,45900.0,45893.0,0.00050948]
[1649175179593,0.26336691,45899.0,45893.0,0.00050948]
[1649175179687,0.054479,45898.0,45893.0,0.00050948]
[1649175179887,0.054479,45898.0,45887.0,0.0109]
[1649175179987,0.05447608,45895.0,45887.0,0.0109]
[1649175180688,0.15895215,45896.0,45887.0,0.0109]
[1649175180789,0.054485,45893.0,45887.0,0.0109]
[1649175180996,0.054485,45893.0,45886.0,0.22232355]
[1649175181488,0.367946,45896.0,45886.0,0.22232355]
[1649175181489,0.05448263,45891.0,45886.0,0.22232355]
[1649175181943,0.10448263,45891.0,45886.0,0.22232355]
[1649175182135,0.05,45891.0,45886.0,0.22232355]
[1649175182334,0.15,45896.0,45886.0,0.22232355]
[1649175182836,0.05446986,45895.0,45886.0,0.22232355]
[1649175183336,0.15,45896.0,45886.0,0.22232355]
[1649175183437,0.15,45896.0,45891.0,0.30136199]
[1649175184136,0.05,45896.0,45891.0,0.30136199]
[1649175184241,0.01089,45898.0,45892.0,0.2434503]
[1649175184990,0.01089,45898.0,45893.0,0.00052606]
[1649175185837,0.01089,45899.0,45893.0,0.00052606]
[1649175185938,0.01089,45899.0,45891.0,0.30136199]
[1649175186288,0.01089,45899.0,45893.0,0.00052606]
[1649175186389,0.05446455,45898.0,45893.0,0.00052606]
[1649175187041,0.01089,45899.0,45893.0,0.00052606]
[1649175187139,0.01089,45899.0,45891.0,0.53384274]
[1649175187340,0.01089,45900.0,45893.0,0.00052606]
[1649175187839,0.3287393,45901.0,45893.0,0.00052606]
[1649175187940,0.15052597,45901.0,45893.0,0.00052606]
[1649175188341,0.15,45901.0,45891.0,0.53384274]
[1649175188690,0.15,45901.0,45893.0,0.00053616]
[1649175188790,0.15053606,45901.0,45893.0,0.00053616]
[1649175188991,0.10893365,45900.0,45893.0,0.00053616]
[1649175189689,0.10893365,45900.0,45891.0,0.30136199]
[1649175189891,0.10893365,45900.0,45893.0,0.00053615]
[1649175189989,0.1877999,45888.0,45887.0,0.0109]
[1649175190193,0.1877999,45888.0,45887.0,0.24608505]
[1649175190943,0.1877999,45888.0,45887.0,0.29804773]
[1649175191444,0.1877999,45888.0,45887.0,0.54804773]
[1649175192095,0.1877999,45888.0,45887.0,0.78767447]
[1649175192195,0.2377999,45888.0,45887.0,0.78767447]
[1649175192345,0.2377999,45888.0,45887.0,1.11147447]
[1649175192447,0.00053645,45896.0,45887.0,1.38406659]
[1649175192550,0.00053645,45896.0,45895.0,0.02484045]
[1649175192649,0.00053645,45896.0,45895.0,0.83201263]
[1649175192849,0.00053645,45896.0,45895.0,0.60953045]
[1649175193048,0.00053645,45896.0,45895.0,0.96384799]
[1649175193200,0.00053645,45896.0,45895.0,1.01384799]
[1649175193293,0.004,45903.0,45895.0,1.45643966]
[1649175193388,0.004,45903.0,45900.0,0.3238]
[1649175193489,0.004,45903.0,45902.0,0.34864045]
[1649175194191,0.004,45903.0,45902.0,0.35953045]
[1649175195689,0.004,45903.0,45902.0,0.71152757]
[1649175195889,0.004,45903.0,45902.0,0.35953045]
[1649175195991,0.004,45903.0,45902.0,0.63528589]
[1649175196093,0.004,45903.0,45902.0,0.35953045]
[1649175196342,0.004,45903.0,45902.0,0.03573045]
[1649175196592,0.004,45903.0,45901.0,0.01089]
[1649175196792,0.004,45903.0,45896.0,0.01089]
[1649175197037,0.26479959,45902.0,45896.0,0.01089]
[1649175197133,0.05446204,45901.0,45896.0,0.01089]
[1649175197233,0.03946204,45901.0,45899.0,0.02484045]
[1649175197385,0.03946204,45901.0,45900.0,0.01089]
[1649175197483,0.08946204,45901.0,45900.0,0.01089]
[1649175197583,0.03946204,45901.0,45900.0,0.01089]
[1649175197682,0.08946204,45901.0,45900.0,0.01089]
[1649175197782,0.03946204,45901.0,45900.0,0.01089]
[1649175197885,0.08946204,45901.0,45900.0,0.01089]
[1649175197985,0.03946204,45901.0,45900.0,0.01089]
[1649175198084,0.08446204,45901.0,45900.0,0.01089]
[1649175198234,0.004,45903.0,45900.0,0.01089]
[1649175198334,0.05,45901.0,45900.0,0.01089]
[1649175198436,0.0044982,45903.0,45900.0,0.01089]
[1649175199291,0.004,45903.0,45899.0,0.02484045]
[1649175200389,0.00096049,45903.0,45900.0,0.3238]
[1649175200489,0.00096049,45903.0,45899.0,0.02484045]
[1649175200735,0.00096049,45903.0,45900.0,0.3238]
[1649175200833,0.00143612,45903.0,45900.0,0.3238]
[1649175201034,0.00143612,45903.0,45901.0,0.01089]
[1649175201133,0.00143612,45903.0,45902.0,0.34864045]
[1649175201834,0.00096049,45903.0,45902.0,0.34864045]
[1649175202141,0.00096049,45903.0,45902.0,0.02484045]
[1649175202237,0.00096049,45903.0,45902.0,0.34864045]
[1649175202337,0.00096049,45903.0,45902.0,0.02484045]
[1649175202540,0.00096049,45903.0,45902.0,0.34864045]
[1649175203490,0.00096049,45903.0,45902.0,0.02484045]
[1649175203589,0.00096049,45903.0,45902.0,0.34864045]
[1649175203692,0.00096049,45903.0,45902.0,0.03573045]
[1649175203890,0.00096049,45903.0,45902.0,0.35953045]
[1649175203991,0.00096049,45903.0,45902.0,0.03573045]
[1649175204190,0.00096049,45903.0,45902.0,0.35953045]
[1649175205893,0.00096049,45903.0,45902.0,0.03573045]
[1649175205993,0.00096049,45903.0,45902.0,0.35953045]
[1649175206200,0.00096049,45903.0,45902.0,0.63084909]
[1649175206414,0.00096049,45903.0,45902.0,0.73084909]
[1649175206599,0.00096049,45903.0,45902.0,0.50323045]
[1649175206697,0.00096049,45903.0,45902.0,0.73062684]
[1649175206795,0.21393225,45909.0,45902.0,0.73062684]
[1649175206893,0.21393225,45909.0,45903.0,0.01089]
[1649175206993,0.21393225,45909.0,45908.0,0.62773881]
[1649175207096,0.21393225,45909.0,45908.0,1.23981765]
[1649175207248,0.21393225,45909.0,45908.0,1.20574528]
[1649175208231,0.21393225,45909.0,45908.0,1.36898528]
[1649175209281,0.21393225,45909.0,45908.0,0.99124647]
[1649175209381,0.21393225,45909.0,45908.0,1.21931131]
[1649175209794,0.21393225,45909.0,45908.0,0.82800647]
[1649175210185,0.21393225,45909.0,45908.0,0.50420647]
[1649175210486,0.21393225,45909.0,45908.0,0.82800647]
[1649175211085,0.21393225,45909.0,45908.0,0.50420647]
[1649175211186,0.21393225,45909.0,45908.0,0.82800647]
[1649175211443,0.21393225,45909.0,45908.0,1.05612431]
[1649175211537,0.21393225,45909.0,45908.0,0.82800647]
[1649175211688,0.21393225,45909.0,45908.0,1.2394737]
[1649175212583,0.00809828,45918.0,45909.0,1.8]
[1649175212685,0.00809828,45918.0,45910.0,0.81257708]
[1649175212686,0.006,45918.0,45910.0,0.81257708]
[1649175212785,0.006,45918.0,45911.0,0.22805855]
[1649175212884,0.0001,45915.0,45914.0,0.02484045]
[1649175212987,0.00809828,45918.0,45915.0,1.45]
[1649175213090,0.00809828,45918.0,45916.0,0.28299459]
[1649175213285,0.00809828,45918.0,45916.0,0.05459]
[1649175213485,0.00809828,45918.0,45916.0,0.37839]
[1649175213586,0.002,45921.0,45917.0,2.4679]
[1649175213685,0.002,45921.0,45918.0,0.01089]
[1649175213785,0.002,45921.0,45918.0,0.065301]
[1649175213887,0.002,45921.0,45919.0,0.0437]
[1649175213988,0.002,45921.0,45920.0,0.28573045]
[1649175214134,0.002,45921.0,45920.0,0.32943045]
[1649175214235,0.002,45921.0,45920.0,0.31854045]
[1649175214335,0.002,45921.0,45920.0,0.62031091]
[1649175214535,0.002,45921.0,45920.0,0.42943045]
[1649175214739,7.45e-06,45926.0,45923.0,1.8]
[1649175214845,0.002,45936.0,45925.0,0.02484045]
[1649175214943,0.002,45936.0,45927.0,0.2]
[1649175215040,0.002,45936.0,45928.0,1.8]
[1649175215141,0.002,45936.0,45931.0,0.25]
[1649175215236,0.002,45936.0,45933.0,0.02484045]
[1649175215336,0.002,45936.0,45933.0,0.65953045]
[1649175215435,0.002,45936.0,45933.0,0.70323045]
[1649175215535,0.002,45936.0,45933.0,0.80323045]
[1649175215892,0.06996944,45934.0,45933.0,0.80323045]
[1649175216092,0.06996944,45934.0,45933.0,0.50323045]
[1649175216295,0.06996944,45934.0,45933.0,0.80323045]
[1649175217293,0.06996944,45934.0,45933.0,1.3116764]
[1649175218355,0.06996944,45934.0,45933.0,2.02308527]
[1649175218449,0.06996944,45934.0,45933.0,1.40958027]
[1649175218549,0.06996944,45934.0,45933.0,1.3660714]
[1649175218751,0.06996944,45934.0,45933.0,1.5660714]
[1649175219481,0.06996944,45934.0,45933.0,1.60957883]
[1649175219989,0.06996944,45934.0,45933.0,1.5660714]
[1649175220185,0.06996944,45934.0,45933.0,2.1795764]
[1649175220285,0.06996944,45934.0,45933.0,2.2339704]
[1649175221588,0.06164961,45934.0,45933.0,2.2339704]
[1649175221792,0.06164961,45934.0,45933.0,1.5660704]
[1649175221940,0.06164961,45934.0,45933.0,1.2660704]
[1649175222142,0.06164961,45934.0,45933.0,1.7339704]
[1649175223189,0.06164961,45934.0,45933.0,1.0660704]
[1649175223288,0.06164961,45934.0,45933.0,2.0339704]
[1649175223489,0.06164961,45934.0,45933.0,1.3660704]
[1649175225589,0.06164961,45934.0,45933.0,2.0339704]
[1649175225989,0.06164961,45934.0,45933.0,1.3660704]
[1649175226392,0.06164961,45934.0,45933.0,1.0660704]
[1649175226542,0.06164961,45934.0,45933.0,1.0116764]
[1649175226643,0.06164961,45934.0,45933.0,1.3660704]
[1649175227146,0.06164961,45934.0,45933.0,0.63687833]
[1649175227496,0.06164961,45934.0,45933.0,0.06854045]
[1649175227599,0.06164961,45934.0,45933.0,0.39234045]
[1649175228294,0.06164961,45934.0,45933.0,0.3238]
[1649175228598,0.06164961,45934.0,45930.0,0.0333]
[1649175228697,0.06164961,45934.0,45931.0,0.3238]
[1649175229696,0.06164961,45934.0,45931.0,0.59864045]
[1649175229795,0.06164961,45934.0,45931.0,0.3238]
[1649175230836,0.06164961,45934.0,45931.0,0.3738]
[1649175230984,0.06164961,45934.0,45931.0,0.15]
[1649175231087,0.06164961,45934.0,45930.0,0.0333]
[1649175231185,0.05967961,45934.0,45930.0,0.0333]
[1649175231537,0.05967961,45934.0,45925.0,0.01089]
[1649175231538,0.60527338,45933.0,45926.0,0.25]
[1649175231639,0.60527338,45933.0,45920.0,0.01089]
[1649175231640,0.0999,45929.0,45922.0,0.27484045]
[1649175231738,0.27996543,45928.0,45920.0,0.01089]
[1649175231837,0.27996543,45928.0,45918.0,0.01089]
[1649175231939,0.27996543,45928.0,45916.0,0.26089]
[1649175232041,0.57996543,45928.0,45916.0,0.25]
[1649175232138,0.27996543,45928.0,45916.0,0.25]
[1649175232238,0.57996543,45928.0,45916.0,0.25]
[1649175232338,0.27996543,45928.0,45923.0,0.00052483]
[1649175232438,0.26996543,45928.0,45923.0,0.00052483]
[1649175232541,0.0999,45929.0,45924.0,0.23707613]
[1649175232646,0.0999,45929.0,45923.0,0.00052483]
[1649175233138,0.0999,45929.0,45920.0,0.25]
[1649175233438,0.00052476,45928.0,45923.0,0.00052481]
[1649175234240,0.00052476,45928.0,45921.0,0.25541147]
[1649175234343,0.0999,45929.0,45921.0,0.25541147]
[1649175234544,0.0999,45929.0,45923.0,0.00052396]
[1649175234641,0.00052391,45928.0,45923.0,0.00052396]
[1649175234741,0.00052391,45928.0,45923.0,0.24074319]
[1649175234845,0.00052391,45928.0,45924.0,0.3238]
[1649175235046,0.00039728,45928.0,45924.0,0.3238]
[1649175235150,0.00039728,45928.0,45925.0,0.3]
[1649175235246,0.00039728,45928.0,45926.0,0.3238]
[1649175235349,0.00039728,45928.0,45927.0,0.8738]
[1649175235548,0.00039728,45928.0,45927.0,0.9738]
[1649175235745,0.0999,45929.0,45927.0,0.9738]
[1649175235845,0.0999,45929.0,45928.0,0.8830399]
[1649175236045,0.0999,45929.0,45928.0,0.9939299]
[1649175236250,0.05967961,45934.0,45929.0,1.8]
[1649175236355,0.05967961,45934.0,45933.0,0.25]
[1649175236452,0.05967961,45934.0,45933.0,0.89856438]
[1649175236549,0.05967961,45934.0,45933.0,0.94226438]
[1649175236699,0.05967961,45934.0,45933.0,1.04226438]
[1649175236995,0.05967961,45934.0,45933.0,1.04600662]
[1649175237099,0.05967961,45934.0,45933.0,1.34600662]
[1649175237198,0.05967961,45934.0,45933.0,1.16129062]
[1649175237452,0.05967961,45934.0,45933.0,1.08213224]
[1649175237550,0.05967961,45934.0,45933.0,1.07124224]
[1649175238048,0.05967961,45934.0,45933.0,1.02124224]
[1649175238331,0.05967961,45934.0,45933.0,0.7175]
[1649175239535,0.05967961,45934.0,45933.0,0.952539]
[1649175240238,0.05967961,45934.0,45933.0,0.702539]
[1649175240340,0.05967961,45934.0,45933.0,0.952539]
[1649175240739,0.05967961,45934.0,45933.0,0.702539]
[1649175240837,0.05967961,45934.0,45933.0,0.952539]
[1649175240938,0.05967961,45934.0,45933.0,1.252539]
[1649175241740,0.05967961,45934.0,45933.0,1.208839]
[1649175242063,0.05967961,45934.0,45933.0,1.38040327]
[1649175242213,0.04967961,45934.0,45933.0,1.38040327]
[1649175242770,0.04967961,45934.0,45933.0,0.6738]
[1649175242866,0.04967961,45934.0,45933.0,0.4238]
[1649175244219,0.04967961,45934.0,45933.0,0.3238]
[1649175244818,0.04967961,45934.0,45933.0,0.6238]
[1649175245323,0.04967961,45934.0,45933.0,0.7238]
[1649175245422,0.04967961,45934.0,45933.0,0.99856411]
[1649175245801,0.04967961,45934.0,45933.0,1.04856411]
[1649175246099,0.002,45935.0,45933.0,1.04856411]
[1649175246100,0.002,45935.0,45934.0,1.83664218]
[1649175246197,0.002,45935.0,45934.0,2.19617263]
[1649175246298,0.002,45935.0,45934.0,2.33987263]
[1649175246398,0.0011,45937.0,45935.0,2.44061121]
[1649175246496,0.0011,45937.0,45936.0,0.3]
[1649175246605,0.0011,45937.0,45936.0,0.67838]
[1649175246795,0.0011,45937.0,45936.0,0.77838]
[1649175246997,0.00164291,45937.0,45936.0,0.47838]
[1649175247097,0.00164291,45937.0,45936.0,0.43468]
[1649175247200,0.00164291,45937.0,45936.0,0.4238]
[1649175247397,0.00164291,45937.0,45936.0,0.4138]
[1649175247799,0.0011,45937.0,45936.0,0.4138]
[1649175247956,0.0011,45937.0,45936.0,0.7138]
[1649175248153,0.0011,45937.0,45936.0,0.822586]
[1649175249000,0.0011,45937.0,45936.0,0.877166]
[1649175249445,0.00425727,45939.0,45937.0,1.8]
[1649175249544,0.00425727,45939.0,45937.0,2.13468]
[1649175249643,0.00425727,45939.0,45937.0,2.27838]
[1649175249794,0.00425727,45939.0,45937.0,2.30164521]
[1649175249894,0.00101961,45941.0,45938.0,2.123379]
[1649175249995,0.00101961,45941.0,45939.0,0.474005]
[1649175250104,0.00101961,45941.0,45940.0,0.89821945]
[1649175250194,0.00101961,45941.0,45940.0,0.98674266]
[1649175250299,0.00101961,45941.0,45940.0,1.18044266]
[1649175250550,0.00101961,45941.0,45940.0,1.39024653]
[1649175250647,0.00101961,45941.0,45940.0,1.47667004]
[1649175250845,0.00101961,45941.0,45940.0,1.17667004]
[1649175250946,0.00101961,45941.0,45940.0,1.47667004]
[1649175251051,0.00101961,45941.0,45940.0,1.12229204]
[1649175251146,0.00101961,45941.0,45940.0,1.24606466]
[1649175251251,0.00101961,45941.0,45940.0,0.92279945]
[1649175251451,0.06014157,45943.0,45940.0,0.92279945]
[1649175251547,0.06014157,45943.0,45941.0,0.32061042]
[1649175251647,0.06014157,45943.0,45942.0,0.623379]
[1649175251746,0.06039905,45943.0,45942.0,0.623379]
[1649175251846,0.06039905,45943.0,45942.0,0.723379]
[1649175252347,0.06039905,45943.0,45942.0,0.74664421]
[1649175252449,0.06039905,45943.0,45942.0,0.95354293]
[1649175252549,0.06039905,45943.0,45942.0,0.99724293]
[1649175252648,0.06014157,45943.0,45942.0,1.00812293]
[1649175252900,0.06014157,45943.0,45942.0,1.4350354]
[1649175252999,0.06014157,45943.0,45942.0,2.1029354]
[1649175253543,0.002,45954.0,45944.0,0.6679]
[1649175253692,0.00338288,45959.0,45949.0,0.323379]
[1649175253842,0.0169696,45955.0,45952.0,0.323379]
[1649175253943,0.0040696,45957.0,45954.0,0.25]
[1649175254049,0.0040696,45957.0,45955.0,0.323379]
[1649175254144,6.96e-05,45957.0,45956.0,1.3249336]
[1649175254242,6.96e-05,45957.0,45956.0,1.6483126]
[1649175254349,6.96e-05,45957.0,45956.0,1.8420126]
[1649175254444,6.96e-05,45957.0,45956.0,2.10985099]
[1649175254543,0.00338288,45959.0,45957.0,1.791279]
[1649175254645,0.00338288,45959.0,45958.0,0.3]
[1649175254744,0.00338288,45959.0,45958.0,0.673379]
[1649175254846,0.00338288,45959.0,45958.0,0.827736]
[1649175254947,0.00338288,45959.0,45958.0,1.02314767]
[1649175255095,0.00338288,45959.0,45958.0,0.97314767]
[1649175255295,0.004,45970.0,45960.0,0.6679]
[1649175255398,0.004,45970.0,45962.0,0.68142544]
[1649175255497,0.004,45970.0,45967.0,0.25]
[1649175255597,0.004,45970.0,45968.0,0.991279]
[1649175255701,0.004,45970.0,45968.0,0.323379]
[1649175255798,0.004,45970.0,45968.0,0.423379]
[1649175256198,0.004,45970.0,45968.0,0.323379]
[1649175256301,0.004,45970.0,45969.0,0.2498251]
[1649175256449,0.004,45970.0,45969.0,0.323379]
[1649175256854,0.004,45970.0,45969.0,0.423379]
[1649175257121,0.004,45970.0,45969.0,1.091279]
[1649175257221,0.004,45970.0,45969.0,0.423379]
[1649175257425,0.004,45970.0,45969.0,0.42398283]
[1649175257726,0.004,45970.0,45969.0,0.72398283]
[1649175258375,0.004,45970.0,45969.0,1.39188283]
[1649175258526,0.004,45970.0,45969.0,3.03745179]
[1649175258623,0.004,45970.0,45969.0,3.06217033]
[1649175259076,0.00563025,45975.0,45969.0,3.06217033]
[1649175259077,0.95371333,45998.0,45969.0,3.06217033]
[1649175259179,0.00097068,45986.0,45978.0,0.054336]
[1649175259276,0.00097068,45986.0,45981.0,0.25]
[1649175259378,0.00097068,45986.0,45982.0,0.623379]
[1649175259481,0.00097068,45986.0,45985.0,0.27484045]
[1649175259596,0.1011,45998.0,45986.0,2.123379]
[1649175259597,0.09721804,45998.0,45986.0,2.123379]
[1649175259676,0.09751276,45998.0,45995.0,0.323379]
[1649175259783,0.09751276,45998.0,45997.0,0.323379]
[1649175259880,0.09751276,45998.0,45993.0,0.0437]
[1649175259980,0.09751276,45998.0,45992.0,1.59086705]
[1649175260082,0.09751276,45998.0,45984.0,0.412965]
[1649175260083,0.09351276,45998.0,45984.0,0.25]
[1649175260178,0.09351276,45998.0,45989.0,0.0437]
[1649175260329,0.09351276,45998.0,45985.0,0.323379]
[1649175260330,0.09351276,45998.0,45990.0,0.3]
[1649175260428,0.09351276,45998.0,45991.0,0.323379]
[1649175260720,0.09351276,45998.0,45992.0,0.3]
[1649175260828,0.09351276,45998.0,45985.0,0.1437]
[1649175260829,0.00139472,45998.0,45993.0,0.323379]
[1649175260918,0.28847908,45998.0,45993.0,0.323379]
[1649175261014,0.28847908,45998.0,45994.0,0.3]
[1649175261114,0.28847908,45998.0,45993.0,0.323379]
[1649175261115,0.00139472,45998.0,45995.0,0.323379]
[1649175261317,0.00139472,45998.0,45996.0,0.3]
[1649175261421,0.00139472,45998.0,45997.0,0.323379]
[1649175261617,0.00139472,45998.0,45990.0,0.3]
[1649175261618,0.12661111,45991.0,45990.0,0.3]
[1649175261725,0.12661111,45991.0,45990.0,0.80203367]
[1649175261817,0.12661111,45991.0,45990.0,0.50203367]
[1649175261917,0.12661111,45991.0,45990.0,1.02963739]
[1649175262466,0.12661111,45991.0,45990.0,3.0072619]
[1649175262569,0.12661111,45991.0,45990.0,3.04297235]
[1649175262669,0.00029472,45993.0,45991.0,1.8]
[1649175262769,0.00029472,45993.0,45992.0,2.46384305]
[1649175262866,0.00029472,45993.0,45992.0,2.66841305]
[1649175263169,0.00029472,45993.0,45992.0,3.33631305]
[1649175263272,0.00029472,45993.0,45992.0,1.077546]
[1649175263372,0.00051563,45993.0,45992.0,1.077546]
[1649175263472,0.00051563,45993.0,45992.0,0.727546]
[1649175263571,0.00051563,45993.0,45992.0,0.477546]
[1649175263774,0.00051563,45993.0,45992.0,0.777546]
[1649175263872,0.00051563,45993.0,45992.0,0.80238645]
[1649175264222,0.00029472,45993.0,45992.0,0.80238645]
[1649175264451,0.00029472,45993.0,45992.0,1.47028645]
[1649175264556,0.00029472,45993.0,45992.0,0.80238645]
[1649175264652,3.604e-05,45993.0,45992.0,0.80238645]
[1649175264752,3.604e-05,45993.0,45992.0,0.85671545]
[1649175264853,3.604e-05,45993.0,45992.0,2.4975825]
[1649175264952,3.604e-05,45993.0,45992.0,0.90671545]
[1649175265255,3.604e-05,45993.0,45992.0,0.55671545]
[1649175265354,3.604e-05,45993.0,45992.0,0.477546]
[1649175265458,3.604e-05,45993.0,45992.0,0.466676]
[1649175265852,3.604e-05,45993.0,45992.0,0.521005]
[1649175266055,3.604e-05,45993.0,45992.0,0.516005]
[1649175266257,3.604e-05,45993.0,45992.0,0.461676]
[1649175266456,3.604e-05,45993.0,45992.0,0.361676]
[1649175266755,3.604e-05,45993.0,45992.0,0.661676]
[1649175266858,3.604e-05,45993.0,45992.0,0.361676]
[1649175267055,3.604e-05,45993.0,45992.0,0.661676]
[1649175267155,3.604e-05,45993.0,45992.0,0.361676]
[1649175267463,3.604e-05,45993.0,45992.0,0.64007658]
[1649175267657,3.604e-05,45993.0,45992.0,1.30797658]
[1649175267756,3.604e-05,45993.0,45992.0,1.99815738]
[1649175267857,3.604e-05,45993.0,45992.0,3.83902443]
[1649175268056,3.604e-05,45993.0,45992.0,2.24815738]
[1649175268291,3.604e-05,45993.0,45992.0,2.29815738]
[1649175268498,3.604e-05,45993.0,45992.0,2.32299783]
[1649175268744,3.604e-05,45993.0,45992.0,2.32360139]
[1649175268993,3.604e-05,45993.0,45992.0,3.91446844]
[1649175269194,0.0011,45998.0,45992.0,3.93607531]
[1649175269293,0.00050238,45995.0,45994.0,0.772211]
[1649175269395,0.00050238,45995.0,45994.0,3.3260775]
[1649175269494,0.00050238,45995.0,45994.0,3.4697775]
[1649175269693,0.00050238,45995.0,45994.0,3.48051437]
[1649175270097,0.00168944,45998.0,45994.0,3.48051437]
[1649175270198,0.00168944,45998.0,45996.0,0.6679]
[1649175270297,0.00168944,45998.0,45997.0,3.2174695]
[1649175270496,0.00168944,45998.0,45997.0,3.3611695]
[1649175270600,0.00168944,45998.0,45997.0,3.37190637]
[1649175270848,0.00168944,45998.0,45997.0,3.42622137]
[1649175270945,0.00168944,45998.0,45997.0,3.12622137]
[1649175271054,0.00168944,45998.0,45997.0,0.86745432]
[1649175271147,0.00168944,45998.0,45997.0,0.59742887]
[1649175271248,0.00168944,45998.0,45997.0,0.986692]
[1649175271347,0.00168944,45998.0,45997.0,0.6637]
[1649175271447,0.00168944,45998.0,45997.0,0.986692]
[1649175271995,0.00168944,45998.0,45997.0,0.486692]
[1649175272235,0.006,45999.0,45998.0,1.65411716]
[1649175272335,0.00217888,45999.0,45998.0,1.65411716]
[1649175272485,0.00217888,45999.0,45998.0,0.35411716]
[1649175274144,0.00217888,45999.0,45998.0,0.03112516]
[1649175274590,0.32517088,45999.0,45998.0,0.03112516]
[1649175274691,0.00217888,45999.0,45998.0,0.03112516]
[1649175274788,0.05217888,45999.0,45998.0,0.03112516]
[1649175274891,0.00217888,45999.0,45998.0,0.03112516]
[1649175275491,0.154335,46018.0,45998.0,0.03112516]
[1649175275589,0.16871704,46011.0,45999.0,0.3]
[1649175275692,0.0437,46013.0,45999.0,0.3]
[1649175275793,0.013163,46016.0,45999.0,0.3]
[1649175275891,0.056863,46016.0,45999.0,0.3]
[1649175276097,0.05432451,46015.0,45999.0,0.3]
[1649175276197,0.322962,46014.0,45999.0,0.3]
[1649175276396,0.422962,46014.0,45999.0,0.3]
[1649175276493,0.422962,46014.0,46002.0,0.29983475]
[1649175276494,0.29038749,46008.0,46002.0,0.29983475]
[1649175276596,0.013163,46007.0,45999.0,0.3]
[1649175276693,0.013163,46007.0,45998.0,0.03112516]
[1649175276893,0.30323962,46010.0,45998.0,0.03112516]
[1649175276992,0.322962,46009.0,45998.0,0.33112516]
[1649175277093,0.05,46006.0,45998.0,0.33112516]
[1649175277394,0.05,46006.0,45998.0,0.03112516]
[1649175277495,0.05,46006.0,45998.0,0.33112516]
[1649175277696,0.05,46006.0,46002.0,0.22938415]
[1649175277796,0.322962,46005.0,46002.0,0.22938415]
[1649175277906,0.05,46006.0,46002.0,0.21938415]
[1649175278198,0.05,46006.0,46001.0,0.26697714]
[1649175278199,0.1,46006.0,46001.0,0.26697714]